bitfinex-derivatives/quotes_SOLF0:USTF0_20240823
["timestamp","ask_amount","ask_price","bid_price","bid_amount"]
[1724410354505,3.4603,144.48,144.47,0.05178432]
[1724410354814,10.8903,144.48,144.47,0.05178432]
[1724410368517,10.8903,144.48,144.47,0.05178432]
[1724410370308,3.4603,144.48,144.47,0.05178432]
[1724410370509,10.8903,144.48,144.47,0.05178432]
[1724410371310,3.4603,144.48,144.47,0.05178432]
[1724410371516,10.8903,144.48,144.47,0.05178432]
[1724410374421,3.4603,144.48,144.47,0.05178432]
[1724410387440,10.8903,144.48,144.47,0.05178432]
[1724410399047,3.4603,144.48,144.47,0.05178432]
[1724410400250,3.4603,144.48,144.47,1.43608114]
[1724410406653,3.4603,144.48,144.47,0.05178432]
[1724410406853,3.4603,144.48,144.47,1.43607455]
[1724410407054,10.8903,144.48,144.47,1.43607455]
[1724410407858,10.8903,144.48,144.47,0.05178432]
[1724410408259,10.8903,144.48,144.47,1.43609703]
[1724410410156,10.8903,144.48,144.47,1.43610434]
[1724410410559,10.8903,144.48,144.47,1.4361336]
[1724410413458,10.8903,144.48,144.47,0.05178432]
[1724410413655,10.8903,144.48,144.47,1.4361336]
[1724410414956,10.8903,144.48,144.47,0.05178432]
[1724410417462,3.4612,144.45,144.42,3.4617]
[1724410417663,10.8912,144.45,144.43,1.38456091]
[1724410417858,10.8912,144.45,144.44,1.38456091]
[1724410419357,3.4612,144.45,144.44,1.38456091]
[1724410420460,3.4612,144.45,144.44,1.38454001]
[1724410420759,3.4612,144.45,144.43,0.04629758]
[1724410420963,3.4612,144.45,144.44,1.38452423]
[1724410421160,3.4612,144.45,144.44,1.38452439]
[1724410421559,3.4612,144.45,144.44,1.38454043]
[1724410426766,3.4612,144.45,144.44,1.38454027]
[1724410428766,10.8912,144.45,144.44,1.38454027]
[1724410429162,10.8912,144.45,144.43,0.04629758]
[1724410429163,3.4613,144.44,144.43,0.04629758]
[1724410429368,10.8913,144.44,144.43,0.04629758]
[1724410429671,10.8913,144.44,144.43,1.43106103]
[1724410430268,10.8913,144.44,144.43,0.04629758]
[1724410434875,3.4622,144.41,144.38,3.52789142]
[1724410435174,10.8922,144.41,144.39,1.38493289]
[1724410435371,10.8922,144.41,144.4,1.38490387]
[1724410435876,3.4622,144.41,144.4,1.38490387]
[1724410436969,3.4622,144.41,144.4,1.38484531]
[1724410437678,3.4622,144.41,144.39,0.0525953]
[1724410437875,3.4622,144.41,144.4,1.38484531]
[1724410440079,3.4622,144.41,144.39,0.0525953]
[1724410440376,3.4622,144.41,144.4,1.38484504]
[1724410440580,3.4622,144.41,144.39,0.0525953]
[1724410440782,3.4622,144.41,144.4,1.38484531]
[1724410443771,3.4622,144.41,144.39,0.0525953]
[1724410444778,3.4622,144.41,144.4,1.38484481]
[1724410445768,3.4622,144.41,144.4,1.38481553]
[1724410446880,3.4622,144.41,144.39,0.0525953]
[1724410447974,3.4622,144.41,144.4,1.38478626]
[1724410448578,10.94462519,144.42,144.39,0.0525953]
[1724410448880,3.51462519,144.42,144.4,1.38478643]
[1724410449079,0.05272519,144.42,144.39,7.4825953]
[1724410449478,0.05272519,144.42,144.4,4.8468487]
[1724410449781,0.05272519,144.42,144.4,3.4621]
[1724410451673,0.05272519,144.42,144.41,3.462]
[1724410451879,0.05272519,144.42,144.41,4.84660115]
[1724410452783,0.05272519,144.42,144.41,4.84658474]
[1724410454288,0.05272519,144.42,144.41,1.38458474]
[1724410455985,0.05272519,144.42,144.4,3.4621]
[1724410456287,0.05272519,144.42,144.41,1.38468489]
[1724410457279,3.51452519,144.42,144.41,1.38468489]
[1724410459185,3.51452519,144.42,144.39,3.5149953]
[1724410459384,3.51452519,144.42,144.4,1.38475679]
[1724410459789,3.462,144.41,144.39,0.0525953]
[1724410460084,3.462,144.41,144.4,1.38481671]
[1724410462193,3.462,144.41,144.4,1.384816]
[1724410462393,3.462,144.41,144.39,0.0525953]
[1724410462587,3.462,144.41,144.4,1.384816]
[1724410462988,3.462,144.41,144.39,0.0525953]
[1724410463291,3.462,144.41,144.4,1.384816]
[1724410465197,3.462,144.41,144.39,0.0525953]
[1724410466299,3.462,144.41,144.4,1.384816]
[1724410473104,3.462,144.41,144.39,0.0525953]
[1724410473300,3.462,144.41,144.4,1.3848335]
[1724410475911,10.94452519,144.42,144.4,1.3848335]
[1724410476211,10.94452519,144.42,144.39,0.0525953]
[1724410476601,3.4621,144.41,144.4,1.38481576]
[1724410480001,10.8921,144.41,144.4,1.38481576]
[1724410481011,10.8921,144.41,144.39,0.0525953]
[1724410481313,10.8921,144.41,144.4,1.38488876]
[1724410481709,7.43,144.41,144.39,0.0525953]
[1724410481917,10.8922,144.4,144.39,0.0525953]
[1724410482311,10.8922,144.4,144.39,1.43754534]
[1724410483108,10.8922,144.4,144.39,0.0525953]
[1724410483306,10.8922,144.4,144.39,1.43760748]
[1724410483917,10.8922,144.4,144.39,0.0525953]
[1724410488621,10.8922,144.4,144.39,1.43766506]
[1724410489019,3.4622,144.4,144.39,1.43766506]
[1724410489219,3.4622,144.4,144.39,0.0525953]
[1724410492323,3.4622,144.4,144.39,1.43761374]
[1724410493124,3.4622,144.4,144.39,0.0525953]
[1724410493319,3.4622,144.4,144.39,1.43761374]
[1724410493519,3.4622,144.4,144.39,0.0525953]
[1724410493920,3.4622,144.4,144.39,1.43761222]
[1724410494120,3.4622,144.4,144.39,0.0525953]
[1724410494315,3.4622,144.4,144.39,1.43761222]
[1724410494714,3.4621,144.41,144.39,1.43761222]
[1724410494922,3.4621,144.41,144.4,1.38494599]
[1724410496022,3.4621,144.41,144.39,0.0525953]
[1724410496223,3.4621,144.41,144.4,1.38493467]
[1724410497231,3.4621,144.41,144.39,0.0525953]
[1724410497430,3.4621,144.41,144.4,1.38493494]
[1724410497925,3.4621,144.41,144.39,0.0525953]
[1724410498229,3.4621,144.41,144.4,1.38493494]
[1724410500133,3.4621,144.41,144.4,1.3849403]
[1724410500631,3.4621,144.41,144.4,1.38492742]
[1724410501227,3.4621,144.41,144.39,0.0525953]
[1724410501430,3.4621,144.41,144.4,1.38492683]
[1724410503129,3.4621,144.41,144.39,0.0525953]
[1724410503435,3.4621,144.41,144.4,1.38493443]
[1724410506637,3.4621,144.41,144.4,1.38486822]
[1724410508839,3.4622,144.4,144.39,0.0525953]
[1724410512042,3.462,144.41,144.39,0.0525953]
[1724410520450,3.4622,144.4,144.39,0.0525953]
[1724410532756,3.4621,144.41,144.39,0.0525953]
[1724410533767,0.05272519,144.42,144.4,7.43]
[1724410541269,0.05272519,144.42,144.4,3.4622]
[1724410541470,0.05272519,144.42,144.41,7.43]
[1724410542873,0.05272519,144.42,144.4,3.4622]
[1724410543170,0.05272519,144.42,144.4,10.8922]
[1724410550273,0.05272519,144.42,144.4,7.43]
[1724410552676,3.51452519,144.42,144.39,3.5149953]
[1724410553970,3.51452519,144.42,144.39,0.0525953]
[1724410554274,3.462,144.41,144.39,0.0525953]
[1724410555972,3.462,144.41,144.39,7.4825953]
[1724410556472,0.05272519,144.42,144.4,7.43]
[1724410556676,0.05272519,144.42,144.41,7.43]
[1724410561372,3.51452519,144.42,144.4,7.43]
[1724410564181,0.05272519,144.42,144.4,7.43]
[1724410564571,0.05272519,144.42,144.39,3.5148953]
[1724410564770,0.05272519,144.42,144.39,10.9448953]
[1724410565579,3.51452519,144.42,144.39,10.9448953]
[1724410565876,3.51452519,144.42,144.39,0.0525953]
[1724410569783,3.51452519,144.42,144.39,3.5150953]
[1724410571075,3.51452519,144.42,144.39,0.0525953]
[1724410573288,3.51452519,144.42,144.39,7.4825953]
[1724410583789,3.45452519,144.42,144.39,7.4825953]
[1724410584797,3.49902179,144.42,144.39,7.4825953]
[1724410588002,3.49902179,144.42,144.39,10.9449953]
[1724410590300,3.49902179,144.42,144.41,7.43]
[1724410590301,0.0444966,144.42,144.41,7.43]
[1724410593897,4.0741,144.48,144.41,7.43]
[1724410594101,4.0741,144.48,144.43,7.43]
[1724410594503,3.4608,144.46,144.43,7.43]
[1724410595104,3.5061184,144.46,144.43,7.47648186]
[1724410596609,3.5061184,144.46,144.43,10.93798186]
[1724410597111,3.5061184,144.46,144.43,7.47648186]
[1724410597603,3.5061184,144.46,144.43,0.04648186]
[1724410597909,3.461,144.45,144.43,0.04648186]
[1724410599110,3.461,144.45,144.41,10.87838186]
[1724410600208,3.461,144.45,144.42,0.04972342]
[1724410600707,3.461,144.45,144.42,3.51142342]
[1724410601804,3.5061184,144.46,144.43,7.43]
[1724410604498,3.4611,144.45,144.42,7.47972342]
[1724410604904,3.4611,144.45,144.42,0.04972342]
[1724410608913,3.4613,144.44,144.42,0.04972342]
[1724410611213,3.4615,144.43,144.42,0.04972342]
[1724410613421,4.7998,144.43,144.42,0.04972342]
[1724410613923,11.50507684,144.43,144.42,0.04972342]
[1724410614223,7.43,144.42,144.37,54.87312271]
[1724410614523,3.4623,144.4,144.37,54.87312271]
[1724410615116,3.51267078,144.4,144.37,54.92631245]
[1724410616423,3.51267078,144.4,144.37,58.38911245]
[1724410616820,3.51267078,144.4,144.38,3.52121837]
[1724410621922,3.51267078,144.4,144.37,54.92631245]
[1724410622127,3.51267078,144.4,144.37,0.05318974]
[1724410625928,3.4625,144.39,144.37,0.05318974]
[1724410636634,3.51267078,144.4,144.37,7.48318974]
[1724410637034,3.51267078,144.4,144.37,3.51608974]
[1724410637232,0.05037078,144.4,144.39,7.43]
[1724410638438,0.05037078,144.4,144.37,10.94598974]
[1724410639339,7.48037078,144.4,144.37,0.05318974]
[1724410640137,3.4627,144.38,144.37,0.05318974]
[1724410647549,3.4625,144.39,144.37,0.05318974]
[1724410656155,10.94277078,144.4,144.37,0.05318974]
[1724410656352,3.51277078,144.4,144.37,0.05318974]
[1724410658351,3.4627,144.38,144.37,0.05318974]
[1724410664652,10.8927,144.38,144.37,0.05318974]
[1724410665160,3.4627,144.38,144.37,0.05318974]
[1724410665365,10.8927,144.38,144.37,0.05318974]
[1724410667966,3.4627,144.38,144.37,0.05318974]
[1724410674458,10.17507767,144.38,144.37,0.05318974]
[1724410674664,11.49677767,144.38,144.37,0.05318974]
[1724410677367,11.49629654,144.38,144.37,0.05318974]
[1724410678568,4.7844,144.38,144.37,0.05318974]
[1724410678766,11.49626693,144.38,144.37,0.05318974]
[1724410680775,4.7844,144.38,144.37,0.05318974]
[1724410681276,11.49259048,144.38,144.37,0.05318974]
[1724410683774,4.7844,144.38,144.37,0.05318974]
[1724410683974,11.49259299,144.38,144.37,0.05318974]
[1724410684280,4.7844,144.38,144.37,0.05318974]
[1724410684577,11.49253388,144.38,144.37,0.05318974]
[1724410686966,11.49318036,144.38,144.37,0.05318974]
[1724410687572,11.49318035,144.38,144.37,0.05318974]
[1724410688379,10.17148035,144.38,144.37,0.05318974]
[1724410691189,3.4627,144.38,144.37,0.05318974]
[1724410691390,10.17110224,144.38,144.37,0.05318974]
[1724410695086,10.16970942,144.38,144.37,0.05318974]
[1724410697991,3.4627,144.38,144.37,0.05318974]
[1724410698190,10.16965153,144.38,144.37,0.05318974]
[1724410703786,17.59965153,144.38,144.37,0.05318974]
[1724410704888,10.8927,144.38,144.37,0.05318974]
[1724410705089,17.59990517,144.38,144.37,0.05318974]
[1724410705790,17.59989664,144.38,144.37,0.05318974]
[1724410708489,10.8927,144.38,144.37,0.05318974]
[1724410708892,17.59990078,144.38,144.37,0.05318974]
[1724410710488,3.4637,144.34,144.31,3.4643]
[1724410710689,10.8937,144.34,144.31,6.85952677]
[1724410711504,10.93855449,144.34,144.31,6.90497515]
[1724410711699,3.50855449,144.34,144.31,6.90497515]
[1724410718701,0.04485449,144.34,144.32,3.4641]
[1724410721607,0.04485449,144.34,144.33,3.4639]
[1724410721914,3.4631,144.37,144.33,3.4639]
[1724410722308,3.4631,144.37,144.33,10.8939]
[1724410723010,0.05243284,144.36,144.33,10.8939]
[1724410724213,0.05243284,144.36,144.33,3.4639]
[1724410726617,0.05243284,144.36,144.34,3.4637]
[1724410727011,0.05243284,144.36,144.32,8.8251]
[1724410727218,0.05243284,144.36,144.31,0.04544838]
[1724410727219,10.8937,144.34,144.31,0.04544838]
[1724410727607,7.43,144.34,144.31,3.58128419]
[1724410727811,7.43,144.34,144.31,7.04548419]
[1724410732022,7.43,144.33,144.31,0.04544838]
[1724410737524,3.4641,144.32,144.31,0.04544838]
[1724410737829,10.8941,144.32,144.31,0.04544838]
[1724410742620,3.4641,144.32,144.31,0.04544838]
[1724410742820,10.8941,144.32,144.31,0.04544838]
[1724410747325,3.4641,144.32,144.31,0.04544838]
[1724410750819,3.51263031,144.33,144.31,0.04544838]
[1724410755720,3.4641,144.32,144.31,0.04544838]
[1724410760426,10.8941,144.32,144.31,0.04544838]
[1724410763531,3.4641,144.32,144.31,0.04544838]
[1724410763739,10.8941,144.32,144.31,0.04544838]
[1724410767239,14.36613859,144.32,144.31,0.04544838]
[1724410770140,3.4641,144.32,144.31,0.04544838]
[1724410770340,10.8941,144.32,144.31,0.04544838]
[1724410773541,3.4641,144.32,144.31,0.04544838]
[1724410773741,10.8941,144.32,144.31,0.04544838]
[1724410803659,10.8941,144.32,144.27,6.88294725]
[1724410803660,3.465,144.29,144.27,3.41764725]
[1724410803966,7.43,144.28,144.26,3.4655]
[1724410804765,7.47419834,144.28,144.26,3.51759488]
[1724410805360,7.47419834,144.28,144.26,0.05209488]
[1724410805759,0.04419834,144.28,144.26,0.05209488]
[1724410807464,0.04419834,144.28,144.26,3.51769488]
[1724410811865,0.04419834,144.28,144.27,3.4653]
[1724410812669,0.04419834,144.28,144.26,3.51759488]
[1724410814372,0.04419834,144.28,144.26,0.05209488]
[1724410816764,0.04419834,144.28,144.26,3.51759488]
[1724410817270,0.04419834,144.28,144.27,3.4653]
[1724410820573,0.04419834,144.28,144.26,0.05209488]
[1724410821775,0.04419834,144.28,144.26,3.51759488]
[1724410823377,7.43,144.27,144.12,3.20759701]
[1724410823577,8.07065985,144.26,144.14,7.43]
[1724410823777,7.43,144.22,144.14,7.43]
[1724410823976,3.4672,144.2,144.15,3.4682]
[1724410824278,7.43,144.2,144.13,2.6975]
[1724410824478,7.43,144.2,144.13,10.1275]
[1724410824678,0.04607236,144.19,144.16,0.04434442]
[1724410825179,7.43,144.18,144.16,0.04434442]
[1724410825583,7.47607236,144.19,144.16,0.04434442]
[1724410826083,0.04607236,144.19,144.16,0.04434442]
[1724410826483,3.51347236,144.19,144.16,0.04434442]
[1724410826786,0.04607236,144.19,144.16,0.04434442]
[1724410828287,0.04607236,144.19,144.16,3.51224442]
[1724410828475,0.04607236,144.19,144.16,0.04434442]
[1724410828681,1.3724,144.26,144.16,7.47434442]
[1724410828882,7.43,144.23,144.16,7.43]
[1724410829679,0.04485233,144.21,144.18,0.05155383]
[1724410831182,0.04485233,144.21,144.18,3.51905383]
[1724410831585,0.04485233,144.21,144.18,0.05155383]
[1724410833685,0.04485233,144.21,144.19,7.43]
[1724410833888,3.4661,144.24,144.2,3.4669]
[1724410834089,7.43,144.26,144.2,8.8134]
[1724410834680,3.4658,144.25,144.21,3.4666]
[1724410834886,0.04947436,144.24,144.22,0.04599602]
[1724410838389,19.41056853,144.38,144.23,37.15]
[1724410838589,7.43,144.32,144.23,1.2826]
[1724410838788,7.43,144.31,144.25,7.43]
[1724410838986,3.4646,144.3,144.25,10.8956]
[1724410839392,7.43,144.31,144.25,7.43]
[1724410839590,0.04795789,144.29,144.27,7.43]
[1724410839795,7.43,144.33,144.27,7.43]
[1724410839998,0.0459439,144.29,144.27,7.48288202]
[1724410840689,0.0459439,144.29,144.28,3.4651]
[1724410841585,0.0459439,144.29,144.27,0.05288202]
[1724410842395,0.0459439,144.29,144.27,3.51818202]
[1724410842598,0.0459439,144.29,144.27,10.94818202]
[1724410842997,0.0459439,144.29,144.28,10.8951]
[1724410843189,7.43,144.36,144.23,31.0026]
[1724410843393,7.43,144.36,144.3,7.43]
[1724410843590,3.4639,144.34,144.3,7.43]
[1724410843995,7.43,144.34,144.29,3.4647]
[1724410844190,0.05263006,144.33,144.3,0.04589024]
[1724410845305,3.51653006,144.33,144.3,0.04589024]
[1724410851501,3.4644,144.31,144.3,0.04589024]
[1724410857607,10.8944,144.31,144.3,0.04589024]
[1724410863617,4.7362,144.32,144.3,0.04589024]
[1724410864918,1.272,144.32,144.3,0.04589024]
[1724410866416,3.51663006,144.33,144.3,3.51039024]
[1724410867308,10.94663006,144.33,144.3,3.51039024]
[1724410867513,10.94663006,144.33,144.3,0.04589024]
[1724410869814,3.51663006,144.33,144.3,0.04589024]
[1724410870816,7.48263006,144.33,144.3,0.04589024]
[1724410871316,3.4643,144.32,144.3,0.04589024]
[1724410874619,3.51663006,144.33,144.3,0.04589024]
[1724410879031,3.51663006,144.33,144.3,3.51049024]
[1724410879534,3.51663006,144.33,144.3,0.04589024]
[1724410880226,3.51663006,144.33,144.3,3.51049024]
[1724410880428,0.05263006,144.33,144.3,3.51049024]
[1724410880830,3.51653006,144.33,144.3,0.04589024]
[1724410881626,0.05263006,144.33,144.31,7.43]
[1724410882134,0.05263006,144.33,144.32,3.4641]
[1724410884131,0.05263006,144.33,144.31,10.8943]
[1724410884431,0.05263006,144.33,144.3,0.04589024]
[1724410885332,3.51653006,144.33,144.3,0.04589024]
[1724410886833,3.51653006,144.33,144.3,3.50681631]
[1724410888035,0.05263006,144.33,144.31,7.43]
[1724410889337,0.05263006,144.33,144.32,7.43]
[1724410890733,0.05263006,144.33,144.31,3.4644]
[1724410891425,0.05263006,144.33,144.3,14.40141631]
[1724410892035,3.51653006,144.33,144.3,6.97141631]
[1724410892339,0.05263006,144.33,144.3,0.04589024]
[1724410892739,3.4643,144.32,144.3,0.04589024]
[1724410899534,3.4644,144.31,144.3,0.04589024]
[1724410921257,0.05263006,144.33,144.3,0.04589024]
[1724410921751,0.05263006,144.33,144.31,10.87571083]
[1724410922851,0.05263006,144.33,144.31,7.43]
[1724410927156,0.05263006,144.33,144.3,7.00109936]
[1724410927357,0.05263006,144.33,144.31,7.43]
[1724410938569,0.05263006,144.33,144.3,7.00109936]
[1724410938775,0.05263006,144.33,144.3,14.43109936]
[1724410942078,3.51653006,144.33,144.3,14.43109936]
[1724410943173,3.51653006,144.33,144.3,10.94049024]
[1724410943475,3.51653006,144.33,144.3,7.47589024]
[1724410950783,3.4642,144.32,144.3,0.04589024]
[1724410952181,10.8944,144.31,144.3,0.04589024]
[1724410952576,3.4644,144.31,144.3,0.04589024]
[1724410972500,3.4642,144.32,144.3,0.04589024]
[1724410973404,3.4644,144.31,144.3,0.04589024]
[1724410973603,10.8944,144.31,144.3,0.04589024]
[1724410980610,14.42433529,144.31,144.3,0.04589024]
[1724410984503,3.4657,144.26,144.22,3.4664]
[1724410984711,3.4657,144.26,144.21,8.784]
[1724410985010,3.4657,144.26,144.21,12.21805949]
[1724410985607,0.04390141,144.25,144.22,3.51015486]
[1724410985812,3.50970141,144.25,144.22,3.51015486]
[1724410986309,3.4661,144.24,144.22,0.04375486]
[1724410987309,3.4663,144.23,144.22,0.04375486]
[1724410989811,3.4663,144.23,144.16,4.8672]
[1724410990009,3.4674,144.19,144.16,1.3992]
[1724410990905,7.43,144.17,144.03,30.91925199]
[1724410991110,7.43,144.17,144.12,7.43]
[1724410992007,3.520181,144.16,144.13,0.05251943]
[1724410993311,0.051981,144.16,144.13,0.05251943]
[1724410995704,3.520181,144.16,144.13,0.05251943]
[1724410998323,3.4683,144.15,144.13,0.05251943]
[1724411001023,3.4683,144.15,144.13,0.05251943]
[1724411004123,10.8983,144.15,144.13,0.05251943]
[1724411006326,3.4683,144.15,144.13,0.05251943]
[1724411009425,3.520081,144.16,144.13,0.05251943]
[1724411010828,0.051981,144.16,144.13,3.52101943]
[1724411011229,0.051981,144.16,144.13,0.05251943]
[1724411011534,3.520181,144.16,144.13,0.05251943]
[1724411012031,0.051981,144.16,144.13,0.05251943]
[1724411012832,0.051981,144.16,144.13,3.52111943]
[1724411014234,3.519981,144.16,144.13,3.52111943]
[1724411015530,0.051981,144.16,144.13,3.52111943]
[1724411017833,10.949981,144.16,144.13,0.05251943]
[1724411018831,3.4683,144.15,144.13,0.05251943]
[1724411022329,7.43,144.14,144.08,3.4698]
[1724411022640,7.43,144.15,144.08,7.43]
[1724411022836,3.4687,144.14,144.09,3.4696]
[1724411023138,10.66,144.15,144.09,14.1296]
[1724411023326,0.05026639,144.13,144.1,0.04845058]
[1724411023734,3.51916639,144.13,144.1,0.04845058]
[1724411024438,0.05026639,144.13,144.1,0.04845058]
[1724411024640,10.71026639,144.13,144.1,0.04845058]
[1724411025333,3.4691,144.12,144.1,0.04845058]
[1724411025735,10.71026639,144.13,144.1,0.04845058]
[1724411026541,3.469,144.12,144.1,0.04845058]
[1724411027030,10.71026639,144.13,144.1,0.04845058]
[1724411027233,3.469,144.12,144.1,0.04845058]
[1724411028641,3.4692,144.11,144.1,0.04845058]
[1724411031441,3.469,144.12,144.1,0.04845058]
[1724411031839,0.05026639,144.13,144.1,10.70845058]
[1724411032039,0.05026639,144.13,144.12,10.66]
[1724411032538,0.05026639,144.13,144.12,14.129]
[1724411035237,0.05026639,144.13,144.12,3.469]
[1724411035433,0.05026639,144.13,144.12,14.129]
[1724411035839,0.05026639,144.13,144.12,3.469]
[1724411036042,0.05026639,144.13,144.11,3.4691]
[1724411039347,0.05026639,144.13,144.11,14.1291]
[1724411040841,0.05026639,144.13,144.11,3.4691]
[1724411041148,0.05026639,144.13,144.11,14.1291]
[1724411042748,0.05026639,144.13,144.12,14.129]
[1724411048049,0.05026639,144.13,144.12,10.66]
[1724411049548,0.05026639,144.13,144.12,14.129]
[1724411049748,0.05026639,144.13,144.1,0.04845058]
[1724411050154,0.05026639,144.13,144.12,10.66]
[1724411051842,0.05026639,144.13,144.12,14.129]
[1724411058768,0.05026639,144.13,144.12,28.258]
[1724411060368,0.05026639,144.13,144.12,14.129]
[1724411062273,0.05026639,144.13,144.12,24.789]
[1724411062670,0.05026639,144.13,144.12,28.258]
[1724411063276,79.94455538,144.17,144.12,28.258]
[1724411063578,76.47665538,144.17,144.15,10.66]
[1724411063764,3.4677,144.18,144.15,10.66]
[1724411063966,10.66,144.19,144.14,10.66]
[1724411064273,0.0459891,144.18,144.15,0.04705462]
[1724411065278,3.4678,144.17,144.15,0.04705462]
[1724411065977,3.468,144.16,144.15,0.04705462]
[1724411072087,3.4679,144.17,144.15,0.04705462]
[1724411073781,0.0459891,144.18,144.16,10.66]
[1724411074183,0.0459891,144.18,144.17,10.66]
[1724411075275,0.0459891,144.18,144.17,14.1278]
[1724411076180,0.0459891,144.18,144.17,10.66]
[1724411076877,0.0459891,144.18,144.15,0.04705462]
[1724411076878,0.0459891,144.18,144.15,3.51525462]
[1724411077078,0.0459891,144.18,144.16,10.66]
[1724411077878,0.0459891,144.18,144.15,3.51525462]
[1724411081278,0.0459891,144.18,144.15,0.04705462]
[1724411081889,3.5134891,144.18,144.15,0.04705462]
[1724411082486,3.4679,144.17,144.15,0.04705462]
[1724411082687,0.0459891,144.18,144.15,0.04705462]
[1724411083385,3.4679,144.17,144.15,0.04705462]
[1724411085583,3.4678,144.17,144.15,0.04705462]
[1724411085980,0.0459891,144.18,144.15,0.04705462]
[1724411086385,3.468,144.16,144.15,0.04705462]
[1724411088087,3.4678,144.17,144.15,0.04705462]
[1724411088983,3.5136891,144.18,144.15,0.04705462]
[1724411090493,3.4678,144.17,144.15,0.04705462]
[1724411091589,3.468,144.16,144.15,0.04705462]
[1724411099385,14.128,144.16,144.15,0.04705462]
[1724411100491,3.468,144.16,144.15,0.04705462]
[1724411104788,14.128,144.16,144.15,0.04705462]
[1724411106084,3.4687,144.13,144.12,14.129]
[1724411106289,14.1287,144.13,144.12,14.129]
[1724411107494,3.4687,144.13,144.12,14.129]
[1724411107992,10.70843234,144.14,144.12,14.129]
[1724411108193,6.16764936,144.18,144.15,127.02406766]
[1724411108392,6.16764936,144.18,144.04,2.5638]
[1724411108393,10.66,144.16,144.07,10.66]
[1724411108591,3.4697,144.09,144.07,10.66]
[1724411109094,3.51760799,144.09,144.07,10.70837356]
[1724411110695,3.51760799,144.09,144.07,0.04837356]
[1724411111599,3.4699,144.08,144.07,0.04837356]
[1724411115294,14.1299,144.08,144.07,0.04837356]
[1724411116785,3.4705,144.06,144.02,3.4714]
[1724411116991,14.1305,144.06,144.02,3.4714]
[1724411117494,3.4707,144.05,144.02,3.4714]
[1724411117885,3.4707,144.05,144.01,3.4715]
[1724411118094,3.4709,144.04,144.0,1.3564]
[1724411118294,3.4709,144.04,144.02,0.05135961]
[1724411118495,10.66,144.04,144.02,0.05135961]
[1724411118697,14.131,144.04,144.02,0.05135961]
[1724411119202,14.131,144.04,143.92,24.29460385]
[1724411119203,0.05223253,144.05,143.92,24.29460385]
[1724411119503,10.66,144.05,143.99,10.66]
[1724411119794,3.52154168,144.09,144.01,10.66]
[1724411120000,10.66,144.07,144.01,10.66]
[1724411120203,0.0493167,144.05,144.03,0.04542526]
[1724411120497,3.52193093,144.05,144.03,0.04542526]
[1724411121004,0.05113093,144.05,144.03,0.04542526]
[1724411121298,0.05113093,144.05,144.03,10.70542526]
[1724411121493,0.05113093,144.05,144.04,10.66]
[1724411121704,10.66,144.11,144.04,11.966]
[1724411121897,3.4702,144.08,144.04,11.966]
[1724411122297,10.66,144.1,144.04,11.966]
[1724411122496,3.4702,144.07,144.04,1.306]
[1724411122796,3.4702,144.07,144.04,1.35249653]
[1724411122797,3.52267986,144.07,144.04,1.35249653]
[1724411123301,3.4704,144.06,144.04,0.04649653]
[1724411124195,10.71247986,144.07,144.04,0.04649653]
[1724411124500,3.4704,144.06,144.04,0.04649653]
[1724411124893,10.71247986,144.07,144.04,0.04649653]
[1724411125496,3.4706,144.05,144.04,0.04649653]
[1724411125998,14.1306,144.05,144.04,0.04649653]
[1724411129595,3.4706,144.05,144.04,0.04649653]
[1724411130803,0.05247986,144.07,144.04,0.04649653]
[1724411131197,10.71247986,144.07,144.04,0.04649653]
[1724411131397,3.4706,144.05,144.04,0.04649653]
[1724411139400,3.4704,144.06,144.04,10.70649653]
[1724411139803,0.05247986,144.07,144.04,10.70649653]
[1724411139804,0.05247986,144.07,144.05,10.66]
[1724411140098,0.05247986,144.07,144.06,10.66]
[1724411140707,71.43037594,144.1,144.06,14.1304]
[1724411140909,71.43037594,144.1,144.07,10.66]
[1724411141105,10.66,144.14,144.09,10.66]
[1724411141302,3.4693,144.11,144.09,10.66]
[1724411141504,3.4693,144.11,144.07,3.47]
[1724411141505,74.8027835,144.17,144.1,10.66]
[1724411141715,0.04754332,144.15,144.12,0.05322447]
[1724411142207,3.4687,144.14,144.12,0.05322447]
[1724411144210,3.4687,144.13,144.12,0.05322447]
[1724411144406,10.66,144.14,144.12,0.05322447]